Cogmind - Beta 16 @@@ ROGUE MODE // 2025.11.03 @ 19:25:14 Player: Anonymous Bosch Result: Destroyed by G-67 Veteran with Field Laser Performance ------------- Evolutions (6) 3000 Regions Visited (13) 2600 Robots Destroyed (120) 600 Value Destroyed (2887) 2887 Prototype IDs (29) 580 Alien Tech Used (0) 0 Bonus (1094) 1094 TOTAL SCORE: 10761 Bonus ------- High Alert Combat Kills 33 Follower Combat Kills 261 Entered DSFs 500 Aligned with FarCom 300 Cogmind --------- Core Integrity 0/1150 Matter 21/300 Energy 98/100 System Corruption 1% Temperature Cool (0) Movement Core (50) Location -4/Factory Parts ------- > --- POWER (2) -------- (None) > --- PROPULSION (5) --- (None) > --- UTILITY (8) ------ Machine Analyzer > --- WEAPON (4) ------- (None) > --- INVENTORY (5) ---- Angular Momentum Engine High-capacity Storage Unit Advanced Plasma Cannon Precision Assault Rifle Great Axe Peak State ------------ > --- POWER ------------ Deuterium Engine > --- PROPULSION ------- Carbon-fiber Leg Carbon-fiber Leg Carbon-fiber Leg Carbon-fiber Leg Improved Carbon-fiber Leg > --- UTILITY ---------- Improved Heat Sink High-capacity Storage Unit Improved Sensor Array Improved Signal Interpreter Advanced Terrain Scan Processor Improved Medium Armor Plating Insulated Plating > --- WEAPON ----------- Plasma Rifle Gauss Rifle > --- INVENTORY -------- Deuterium Engine Angular Momentum Engine Aluminum Leg Carbon-fiber Leg Carbon-fiber Leg Improved Carbon-fiber Leg Cooling System Advanced Terrain Scanner Transmission Jammer Advanced ECM Suite Improved Reaction Control System Trap Extractor Plasma Rifle Enhanced Autogun Enhanced Autogun Advanced EMP Blaster Missile Launcher Plasma Cutter CPS Tube Heavy Hammer [Rating: 55] Favorites ----------- Power Light Ion Engine Engine Light Ion Engine Power Core Fission Core Propulsion Aluminum Leg Leg Aluminum Leg Utility Large Storage Unit Device Improved Sensor Array Storage Large Storage Unit Processor Improved Signal Interpreter Protection Insulated Plating Weapon Hammer Energy Gun EM Pulse Gun Energy Cannon Firepult Ballistic Gun Assault Rifle Launcher Rocket Launcher Special Weapon Mining Laser Impact Weapon Hammer Slashing Weapon Great Axe Build | -11 -10 -9 -9 -9 -8 -8 -8 -8 -8 -6 -5 -5 -4 ------- Run | Yrd Mat Mat Min Exi Min Mat Sto Rec Scr Fac Fac DSF Fac Slots Evolved 12 | . . 2 . . . 2 . . . 4 2 . 2 Power 1 | . . . . . . . . . . . 1 . . Propulsion 3 | . . 2 . . . . . . . 1 . . . Utility 6 | . . . . . . 2 . . . 3 . . 1 Weapon 2 | . . . . . . . . . . . 1 . 1 Parts Attached 87 | 5 14 5 2 . 3 19 11 1 1 22 2 2 . Power 9 | . 4 . . . . 3 . . . 2 . . . Engine 8 | . 4 . . . . 3 . . . 1 . . . Core 1 | . . . . . . . . . . 1 . . . Reactor . | . . . . . . . . . . . . . . Propulsion 21 | 2 2 2 1 . 2 3 5 . . 4 . . . Treads . | . . . . . . . . . . . . . . Leg 21 | 2 2 2 1 . 2 3 5 . . 4 . . . Wheel . | . . . . . . . . . . . . . . Hover . | . . . . . . . . . . . . . . Flight . | . . . . . . . . . . . . . . Utility 28 | 1 4 1 . . 1 8 1 . . 9 2 1 . Device 17 | . 2 . . . . 6 . . . 7 2 . . Storage 3 | 1 2 . . . . . . . . . . . . Processor 3 | . . . . . . . 1 . . 1 . 1 . Hackware . | . . . . . . . . . . . . . . Protection 5 | . . 1 . . 1 2 . . . 1 . . . Artifact . | . . . . . . . . . . . . . . Weapon 29 | 2 4 2 1 . . 5 5 1 1 7 . 1 . Energy Gun 8 | . 2 . . . . 1 1 . . 3 . 1 . Energy Cannon 2 | . . 1 . . . 1 . . . . . . . Ballistic Gun 8 | 2 1 . . . . . 3 . . 2 . . . Ballistic Cannon . | . . . . . . . . . . . . . . Launcher 5 | . . . 1 . . 1 1 1 1 . . . . Special Weapon 2 | . 1 . . . . . . . . 1 . . . Impact Weapon 3 | . . 1 . . . 2 . . . . . . . Slashing Weapon 1 | . . . . . . . . . . 1 . . . Piercing Weapon . | . . . . . . . . . . . . . . Special Melee Weapon . | . . . . . . . . . . . . . . Unidentified Prototypes 6 | . . . . . . 2 2 . . 2 . . . Parts Lost 32 | . 1 . . . 1 4 2 . . 23 . 1 . Power 3 | . . . . . . 1 . . . 2 . . . Propulsion 13 | . . . . . . 2 2 . . 9 . . . Utility 11 | . . . . . 1 1 . . . 9 . . . Weapon 5 | . 1 . . . . . . . . 3 . 1 . Highest Loss Streak 17 | . 1 . . . 1 3 1 . . 17 . 1 . To Critical Strikes 1 | . . . . . . . . . . 1 . . . Average Backups 13 | 5 8 14 14 14 13 13 14 18 19 17 5 4 5 Power 1 | 1 1 1 1 1 1 . 1 2 2 2 1 1 1 Propulsion 1 | 1 1 . . 1 1 2 1 4 4 3 . . . Utility 5 | . 3 7 8 8 7 4 5 5 5 4 1 . 1 Weapon 4 | 1 2 5 5 4 4 4 5 6 7 5 3 3 3 Tool/Special . | . . . . . . . . . . . . . . Unused Backups 26 | . 3 2 2 1 . 5 3 . . 6 . 1 3 Power 4 | . . 1 . . . 1 . . . 1 . . 1 Propulsion 6 | . 2 . . . . 1 2 . . 1 . . . Utility 5 | . 1 . 1 . . 1 . . . . . 1 1 Weapon 10 | . . 1 1 1 . 2 1 . . 3 . . 1 Tool/Special 1 | . . . . . . . . . . 1 . . . Average Slot Usage (%) 84 | . 97 99 100 100 95 91 98 100 81 94 5 2 5 Engine 8 | . 12 11 11 11 11 8 9 9 9 5 . . . Leg 32 | . 28 43 44 44 44 35 35 36 36 30 . . . Device 11 | . 14 4 5 11 6 17 9 9 9 20 . . . Storage 8 | . 14 11 11 11 11 9 9 9 9 5 . . . Processor 3 | . . . . . . . 8 9 9 10 . . 5 Protection 4 | . . 6 5 . . 8 8 9 9 6 . . . Energy Cannon 1 | . . 1 . . . 6 . . . . . . . Ballistic Gun 3 | . 16 8 . . . . 5 9 . 3 5 1 . Launcher 4 | . . . 10 11 11 1 5 3 . 3 . . . Impact Weapon 4 | . . 2 11 11 11 2 5 5 . 4 . . . Peak Build Rating 55 | 6 8 12 13 14 17 42 38 38 37 55 14 6 5 Average Rating 23 | 3 7 11 12 12 14 36 33 37 31 49 6 3 5 On Entrance 16 | . 6 8 12 12 14 17 30 37 37 36 6 6 5 Avg Prop Armor Cover (%) 3 | . . . . . . . . . . 3 . . . Naked Turns 31 | . . . . . . . . . . 1 . 30 . Heaviest Build 70 | 8 28 35 36 30 36 57 59 62 62 70 5 3 . Greatest Support 78 | 20 20 40 40 40 47 53 63 63 63 78 3 3 3 Greatest Overweight (x) 5 | 1 1 . . . . 1 1 . . 5 1 . . Average Overweight (x) . | . . . . . . . . . . . . . . Largest Inventory Capacity 20 | 8 20 15 15 15 15 15 20 20 20 20 5 5 5 Average Capacity 14 | 7 12 15 15 15 15 15 15 20 20 19 5 5 5 Most Carried 20 | 8 15 15 15 15 15 15 18 18 20 20 5 5 5 Average Carried 13 | 5 8 14 14 14 14 13 14 18 19 17 4 4 5 Final Capacity 20 | 8 15 15 15 15 15 15 20 20 20 5 5 5 5 Final Carried 18 | 8 15 15 15 15 14 14 18 18 18 5 5 5 5 Class Distribution -------------------- 40% | Mutant 18% | Scavenger-Mutant 10% | Scavenger-Assassin 8% | Assassin 8% | Commander-Mutant 4% | Commander-Assassin 3% | Skirmisher 3% | Commander-Skirmisher Dominant Class ---------------- Mutant | -10/Materials Scavenger-Mutant | -9/Materials Scavenger-Mutant | -9/Mines Scavenger-Mutant | -9/Exiles Scavenger-Assassin | -8/Mines Mutant | -8/Materials Skirmisher | -8/Storage Commander-Assassin | -8/Recycling Commander-Mutant | -8/Scraptown Assassin | -6/Factory Mutant | -5/Factory Mutant | -5/DSF Mutant | -4/Factory Resources | -11 -10 -9 -9 -9 -8 -8 -8 -8 -8 -6 -5 -5 -4 ----------- Run | Yrd Mat Mat Min Exi Min Mat Sto Rec Scr Fac Fac DSF Fac Matter Collected 2218 | 271 470 67 85 . 125 421 408 49 17 305 . . . Remotely . | . . . . . . . . . . . . . . Salvage Created 4290 | 76 601 96 189 . 222 1855 677 222 . 352 . . . Parts 195 | 10 37 3 6 . 7 80 25 10 . 17 . . . Haulers Intercepted 7 | . 2 . . . . 3 2 . . . . . . Recyclers Shooed 3 | . 1 1 . . . . 1 . . . . . . Parts Field Recycled . | . . . . . . . . . . . . . . Retrieved Matter . | . . . . . . . . . . . . . . Parts Self-Destructed . | . . . . . . . . . . . . . . Prevented . | . . . . . . . . . . . . . . Parts Restored . | . . . . . . . . . . . . . . Kills | -11 -10 -9 -9 -9 -8 -8 -8 -8 -8 -6 -5 -5 -4 ------- Run | Yrd Mat Mat Min Exi Min Mat Sto Rec Scr Fac Fac DSF Fac Combat Hostiles Destroyed 69 | . 13 1 4 . 5 28 10 1 . 7 . . . Melee 2 | . . . . . . 2 . . . . . . . Guns 19 | . 10 1 . . . . 3 1 . 4 . . . Cannons 3 | . 2 . . . . 1 . . . . . . . AOE 42 | . 1 . 4 . 5 23 6 . . 3 . . . Classes Destroyed 16 | 2 5 1 2 . . 5 . . . 1 . . . Worker 13 | . . . 2 . 1 7 . . . 3 . . . Builder 6 | . 1 . . . 1 4 . . . . . . . Tunneler 4 | 2 . . 1 . . 1 . . . . . . . Hauler 7 | . 2 . . . . 3 2 . . . . . . Recycler 13 | 1 3 . 1 . 1 4 1 2 . . . . . Mechanic 2 | . . . . . . 1 . . . 1 . . . Operator 2 | . . . . . . 1 1 . . . . . . Watcher 2 | . 1 . . . . 1 . . . . . . . Swarmer 23 | . 8 . 3 . 2 6 . . . 4 . . . Grunt 29 | . 5 . . . 3 13 6 . . 2 . . . Brawler 2 | . . . 1 . 1 . . . . . . . . Duelist 1 | . . . . . . 1 . . . . . . . Sentry 11 | . . 1 . . . 5 4 1 . . . . . Specialist 2 | . . . . . . 2 . . . . . . . Hunter 2 | . . . . . . 2 . . . . . . . Programmer 1 | . . . . . . . . . . 1 . . . Best Kill Streak 11 | 2 6 1 3 . 3 11 3 1 . 6 . . . Combat Bots Only 6 | . 4 1 3 . 3 6 3 1 . 3 . . . Max Kills in Single Turn 3 | 1 2 1 2 . 2 3 2 1 . 3 . . . Gunslinging 1 | . 1 . . . . . . . . . . . . Exploded 3 | . 1 . 1 . 1 3 2 . . 3 . . . Melee 1 | . . . . . . 1 . . . . . . . Uniques/NPCs Destroyed . | . . . . . . . . . . . . . . Combat | -11 -10 -9 -9 -9 -8 -8 -8 -8 -8 -6 -5 -5 -4 -------- Run | Yrd Mat Mat Min Exi Min Mat Sto Rec Scr Fac Fac DSF Fac Hostile Shots Fired 579 | . 81 6 6 . 1 92 31 4 . 260 . 7 91 Missed 182 | . 26 3 2 . 1 27 9 2 . 71 . 5 36 Hits 397 | . 55 3 4 . . 65 22 2 . 189 . 2 55 Projectile 397 | . 55 3 4 . . 65 22 2 . 189 . 2 55 AOE 2 | . . . . . . . . . . . . 2 . Critical Strikes 17 | . 1 . . . . 4 1 1 . 5 . 1 4 Part Disruptions 1 | . . . . . . . . . . 1 . . . Damage Taken 6914 | . 582 46 35 . 78 1084 543 33 . 3147 . 196 1170 Core 2401 | . 87 . 16 . 12 130 117 18 . 662 . 196 1163 Absorbed by Shields . | . . . . . . . . . . . . . . Ignored by Resistances 51 | . . . . . . . 15 . . 36 . . . Regen/Repaired (Parts) 109 | . . . . . . . 109 . . . . . . Core Remaining (%) 68 | 100 65 . . . 93 . . . 51 22 . 80 . Volleys Fired 205 | 6 61 11 5 . 10 44 27 2 . 39 . . . Largest 2 | 2 2 2 1 . 1 1 2 2 . 2 . . . Hottest 250 | 40 120 60 33 . 33 250 81 61 . 103 . . . Shots Fired 314 | 12 108 16 5 . 10 44 42 4 . 73 . . . Gun 215 | 12 93 10 . . . . 28 3 . 69 . . . Cannon 26 | . . 6 . . . 20 . . . . . . . Launcher 58 | . . . 5 . 10 24 14 1 . 4 . . . Special 15 | . 15 . . . . . . . . . . . . Kinetic 160 | 12 67 5 . . . . 20 3 . 53 . . . Thermal 65 | . 15 6 . . . 20 8 . . 16 . . . Explosive 32 | . . . 5 . 10 13 4 . . . . . . Electromagnetic 57 | . 26 5 . . . 11 10 1 . 4 . . . Robot Hit Streak 12 | 10 12 6 8 . 2 12 11 3 . 12 . . . Robot Miss Streak 6 | . 4 1 . . 2 5 2 1 . 6 . . . Penetration Max 1 | . . . . . . . . . . 1 . . . Secondary Targets 5 | . 3 . . . . . . . . 2 . . . Max Gunslinging Chain 1 | . 1 . . . . . . . . 1 . . . Shots Hit Robots 196 | 10 54 7 5 . 5 37 26 6 . 46 . . . Core Hits 170 | 5 27 4 4 . 13 75 22 3 . 17 . . . Critical Kills 4 | 1 . . . . . 2 1 . . . . . . Critical Parts Destroyed 5 | . 1 . . . 1 2 1 . . . . . . Critical Strikes 11 | 1 1 . . . 1 4 4 . . . . . . Burn 1 | . . . . . . . 1 . . . . . . Destroy 3 | 1 1 . . . . . 1 . . . . . . Smash 7 | . . . . . 1 4 2 . . . . . . Melee Attacks 94 | . . 5 3 . 4 25 10 3 . 44 . . . Impact 94 | . . 5 3 . 4 25 10 3 . 44 . . . Slashing . | . . . . . . . . . . . . . . Piercing . | . . . . . . . . . . . . . . Sneak Attacks 16 | . . . 3 . 2 5 2 2 . 2 . . . Combat Hostiles . | . . . . . . . . . . . . . . Follow-up Attacks . | . . . . . . . . . . . . . . Damage Inflicted 9054 | 101 1032 233 454 . 612 3659 1366 206 . 1370 . . 21 Guns 2041 | 101 669 45 . . . . 306 20 . 900 . . . Cannons 253 | . . 35 . . . 218 . . . . . . . Explosions 5120 | . 218 97 284 . 508 2801 826 45 . 341 . . . Melee 1474 | . . 56 170 . 104 640 234 141 . 129 . . . Ramming 22 | . 1 . . . . . . . . . . . 21 Kinetic 1590 | 101 500 23 . . . . 206 20 . 740 . . . Thermal 1859 | . 144 132 . . . 1217 206 . . 160 . . . Explosive 2518 | . 218 . 284 . 508 1115 279 . . 114 . . . Electromagnetic 1591 | . 169 22 . . . 687 441 45 . 227 . . . Impact 1474 | . . 56 170 . 104 640 234 141 . 129 . . . Slashing . | . . . . . . . . . . . . . . Piercing . | . . . . . . . . . . . . . . Highest Corruption 5 | . 1 . . . . 2 5 5 5 2 . . 1 Average Corruption 2 | . 1 . . . . 1 4 5 5 1 . . 1 Corruption Purged . | . . . . . . . . . . . . . . Corruption Blocked . | . . . . . . . . . . . . . . Effects 40 | . 5 . . . . 2 19 8 . 6 . . . Message Errors 6 | . . . . . . . 2 2 . 2 . . . Matter Fused 13 | . 1 . . . . . 5 4 . 3 . . . Heat Flow Errors 7 | . 1 . . . . 1 5 . . . . . . Energy Discharges 5 | . 1 . . . . 1 2 1 . . . . . Parts Rejected 1 | . 1 . . . . . . . . . . . . Data Loss (minor) 3 | . 1 . . . . . 1 . . 1 . . . Data Loss (major) 4 | . . . . . . . 4 . . . . . . Misfires 1 | . . . . . . . . 1 . . . . . Overload Shots . | . . . . . . . . . . . . . . Overflow Damage 702 | . 116 . 105 . 65 208 146 . . 62 . . . Projectiles 3 | . . . . . . 3 . . . . . . . Explosions 249 | . 116 . 10 . 1 78 35 . . 9 . . . Melee 450 | . . . 95 . 64 127 111 . . 53 . . . Knockbacks 4 | . . . 1 . 1 1 . 1 . . . . . Impact 4 | . . . 1 . 1 1 . 1 . . . . . Kinetic . | . . . . . . . . . . . . . . Secondary . | . . . . . . . . . . . . . . Self-Inflicted Damage 429 | . 70 . . . 37 149 163 . . . . . 10 Shots 18 | . 1 . . . 2 9 6 . . . . . . Rammed 5 | . . . . . . . . . . . . . 5 Targets Rammed 6 | . 1 . . . . . . . . . . . 5 Kicked 1 | . 1 . . . . . . . . . . . . Crushed . | . . . . . . . . . . . . . . Highest Temperature 369 | . 212 120 . . 6 369 209 22 . 111 . . . Average Temperature 72 | . 42 61 . . 4 116 65 11 . 52 . . . Received Heat Transfer 1660 | . 135 9 . . 27 432 162 27 . 612 . . 256 Effects 2 | . . . . . . 1 1 . . . . . . Energy Bleed 1 | . . . . . . . 1 . . . . . . Interference 1 | . . . . . . 1 . . . . . . . Siege Activations . | . . . . . . . . . . . . . . Martial Activations . | . . . . . . . . . . . . . . Shielding Activations . | . . . . . . . . . . . . . . Robots Disrupted . | . . . . . . . . . . . . . . Combat Hostiles . | . . . . . . . . . . . . . . Robots Corrupted 9 | . . . 2 . 2 1 3 . . 1 . . . Combat Hostiles . | . . . . . . . . . . . . . . Parts Fried 15 | . . . 6 . 3 5 1 . . . . . . Impact Corruptions 18 | . . . 4 . 3 7 2 . . 2 . . . Robots Melted 3 | . . . . . . 3 . . . . . . . Combat Hostiles 2 | . . . . . . 2 . . . . . . . Parts Melted 28 | . . . . . . 26 2 . . . . . . Heat Transferred 7690 | . 300 124 . . . 6470 446 . . 350 . . . Parts Sabotaged . | . . . . . . . . . . . . . . Parts Stolen . | . . . . . . . . . . . . . . Parts Stripped . | . . . . . . . . . . . . . . Power Chain Reactions 10 | . . . . . . 8 2 . . . . . . Alert | -11 -10 -9 -9 -9 -8 -8 -8 -8 -8 -6 -5 -5 -4 ------- Run | Yrd Mat Mat Min Exi Min Mat Sto Rec Scr Fac Fac DSF Fac Maximum Alert Level 2 | . 1 . . . . 2 2 . . . . . 1 Low Security (%) 68 | 100 92 100 100 . 100 4 . 100 . 100 100 100 97 Level 1 26 | . 7 . . . . 80 83 . . . . . 2 Level 2 4 | . . . . . . 14 16 . . . . . . Level 3 . | . . . . . . . . . . . . . . Level 4 . | . . . . . . . . . . . . . . Level 5 . | . . . . . . . . . . . . . . High Security . | . . . . . . . . . . . . . . Max Security . | . . . . . . . . . . . . . . Peak Influence 534 | 10 212 123 86 . 184 534 458 197 . 121 30 15 262 Initial 224 | . . 79 10 . . . 224 157 . . 30 10 7 Average 130 | 1 72 73 24 . 26 331 319 147 . 23 18 8 25 Influence Increases 4061 | 15 506 90 170 . 235 1228 686 90 . 483 15 15 528 Destroy 0b10 Robot/C 1560 | . 260 20 100 . 120 560 320 40 . 140 . . . Destroy 0b10 Robot/NC 275 | 15 35 5 20 . 15 125 20 10 . 30 . . . Destroy Leader 392 | . 66 10 20 . 20 162 104 . . 10 . . . Allied During Kill 162 | . . . 8 . 21 23 89 20 . 1 . . . Successful Hack 174 | . 21 14 . . . 38 18 5 . 60 . . 18 Disable Machine 285 | . 30 15 . . . 90 75 15 . 60 . . . Destroy Structure 448 | . 19 26 22 . 59 230 60 . . 32 . . . Partial Spotted 30 | . . . . . . . . . . . 15 . 15 Lose Combat Pursuer 735 | . 75 . . . . . . . . 150 . 15 495 Influence Decreases 3807 | 15 316 251 199 . 235 697 813 387 107 419 64 15 289 Entered New Map 838 | . . 111 19 . . . 307 247 107 . 34 5 8 Time Decay 2573 | 15 306 140 180 . 229 637 386 140 . 243 30 . 267 Lost Part 253 | . 10 . . . 6 40 20 . . 167 . 10 . Lost Ally 129 | . . . . . . 20 100 . . 9 . . . Purge Threat 14 | . . . . . . . . . . . . . 14 Squads Dispatched 29 | . 3 . . . . 9 5 . . 4 . 1 7 Investigation 10 | . 2 . . . . 2 3 . . 1 . . 2 Extermination 5 | . . . . . . . . . . 2 . . 3 Reinforcement 10 | . 1 . . . . 5 . . . 1 . 1 2 Assault 4 | . . . . . . 2 2 . . . . . . Garrison . | . . . . . . . . . . . . . . Intercept . | . . . . . . . . . . . . . . Searches Triggered . | . . . . . . . . . . . . . . Construction Impeded 3 | . . . . . . 3 . . . . . . . Haulers Reinforced . | . . . . . . . . . . . . . . Active Scanning Responses . | . . . . . . . . . . . . . . Cargo Convoy Interrupts . | . . . . . . . . . . . . . . Stealth | -11 -10 -9 -9 -9 -8 -8 -8 -8 -8 -6 -5 -5 -4 --------- Run | Yrd Mat Mat Min Exi Min Mat Sto Rec Scr Fac Fac DSF Fac Distress Signals 12 | . 4 1 . . . 3 1 . . 1 . . 2 Communications Jammed . | . . . . . . . . . . . . . . Distress Signals . | . . . . . . . . . . . . . . Times Spotted 167 | . 32 4 5 . 6 38 17 2 . 25 . 2 36 Peak Tracking Total 16 | . 5 3 3 . 2 7 3 1 . 8 . 3 16 Tactical Retreats 22 | . 5 . . . . . . . . 5 . 1 11 ECM-based Alert Blocks 1 | . . . . . . . . . . 1 . . . Traps | -11 -10 -9 -9 -9 -8 -8 -8 -8 -8 -6 -5 -5 -4 ------- Run | Yrd Mat Mat Min Exi Min Mat Sto Rec Scr Fac Fac DSF Fac Traps Triggered 13 | . 2 . . . . 2 3 . . 5 . . 1 Indirectly . | . . . . . . . . . . . . . . Trap Hack Attempts . | . . . . . . . . . . . . . . Triggered . | . . . . . . . . . . . . . . Disarmed . | . . . . . . . . . . . . . . Reprogrammed . | . . . . . . . . . . . . . . Reused . | . . . . . . . . . . . . . . Traps Extracted . | . . . . . . . . . . . . . . Installed . | . . . . . . . . . . . . . . Triggered . | . . . . . . . . . . . . . . Machines | -11 -10 -9 -9 -9 -8 -8 -8 -8 -8 -6 -5 -5 -4 ---------- Run | Yrd Mat Mat Min Exi Min Mat Sto Rec Scr Fac Fac DSF Fac Machines Disabled 20 | . 3 1 . . . 6 5 1 . 4 . . . Max in Single Turn 2 | . 1 1 . . . 1 2 1 . 2 . . . Garrison Access 2 | . . . . . . 1 1 . . . . . . Machines Repaired . | . . . . . . . . . . . . . . Machines Dismantled . | . . . . . . . . . . . . . . Machines Sabotaged . | . . . . . . . . . . . . . . Overloaded Fab Kills . | . . . . . . . . . . . . . . Hacking | -11 -10 -9 -9 -9 -8 -8 -8 -8 -8 -6 -5 -5 -4 --------- Run | Yrd Mat Mat Min Exi Min Mat Sto Rec Scr Fac Fac DSF Fac Machines Accessed 41 | . 5 1 . 1 . 9 6 3 2 7 1 . 6 Terminals 28 | . 5 1 . . . 6 4 1 . 6 1 . 4 Fabricators . | . . . . . . . . . . . . . . Repair Stations 1 | . . . . . . . 1 . . . . . . Recycling Units 1 | . . . . . . . . . . . . . 1 Scanalyzers 4 | . . . . . . 2 . . . 1 . . 1 Garrison Access 2 | . . . . . . 1 1 . . . . . . Total Hacks 155 | . 14 2 . 1 . 35 16 27 13 26 1 . 20 Successful 97 | . 5 2 . 1 . 22 7 26 13 13 1 . 7 Failed 56 | . 9 . . . . 12 9 1 . 13 . . 12 Catastrophic 8 | . 1 . . . . 2 1 1 . . . . 3 Database Lockouts 2 | . . . . . . 1 . . . . . . 1 Manual 77 | . 14 2 . 1 . 16 11 3 . 20 . . 10 Terminals 86 | . 14 2 . . . 19 12 3 . 23 1 . 12 Fabricators . | . . . . . . . . . . . . . . Repair Stations 2 | . . . . . . . 2 . . . . . . Recycling Units 4 | . . . . . . . . . . . . . 4 Scanalyzers 18 | . . . . . . 11 . . . 3 . . 4 Garrison Access 7 | . . . . . . 5 2 . . . . . . Terminal Hacks 49 | . 1 . . 1 . 3 2 24 13 3 1 . 1 Record 37 | . . . . . . . . 24 13 . . . . Part Schematic 1 | . . . . . . . . . . 1 . . . Open Door 1 | . . . . . . . 1 . . . . . . Open DSF 1 | . . . . . . . . . . . 1 . . Branch Access Points 4 | . 1 . . . . 1 1 . . 1 . . . Unreport Threat 1 | . . . . . . . . . . . . . 1 Locate Traps 3 | . . . . . . 2 . . . 1 . . . Proto ID Catalog 1 | . . . . 1 . . . . . . . . . Fabricator Hacks . | . . . . . . . . . . . . . . Repair Station Hacks 2 | . . . . . . . 2 . . . . . . Scan Component 1 | . . . . . . . 1 . . . . . . Repair 1 | . . . . . . . 1 . . . . . . Recycling Unit Hacks 1 | . . . . . . . . . . . . . 1 Retrieve Matter 1 | . . . . . . . . . . . . . 1 Scanalyzer 12 | . . . . . . 7 . . . 2 . . 3 Insert Component 4 | . . . . . . 3 . . . . . . 1 Analyze 2 | . . . . . . 1 . . . . . . 1 Retrieve Study 6 | . . . . . . 3 . . . 2 . . 1 Garrison Access Hacks 2 | . . . . . . 1 1 . . . . . . Seal Access 2 | . . . . . . 1 1 . . . . . . Unauthorized Hacks 30 | . 4 2 . . . 10 2 2 . 8 . . 2 Terminals 30 | . 4 2 . . . 10 2 2 . 8 . . 2 Botnet 18 | . 4 1 . . . 5 1 1 . 4 . . 2 Skim 12 | . . 1 . . . 5 1 1 . 4 . . . Fabricators . | . . . . . . . . . . . . . . Repair Stations . | . . . . . . . . . . . . . . Recycling Units . | . . . . . . . . . . . . . . Scanalyzers . | . . . . . . . . . . . . . . Garrison Access . | . . . . . . . . . . . . . . Data Cores Recovered 2 | . . . . . . 1 1 . . . . . . Used . | . . . . . . . . . . . . . . Hacking Detections 32 | . 5 . . . . 9 5 1 . 7 . . 5 Full Trace Events 12 | . 2 . . . . 4 3 . . 1 . . 2 Feedback Events 1 | . 1 . . . . . . . . . . . . Corruption 1 | . 1 . . . . . . . . . . . . Feedback Blocked . | . . . . . . . . . . . . . . Robot Schematics Acquired . | . . . . . . . . . . . . . . Robots Built . | . . . . . . . . . . . . . . Authchips . | . . . . . . . . . . . . . . Time . | . . . . . . . . . . . . . . Total Robot Build Rating . | . . . . . . . . . . . . . . Part Schematics Acquired 3 | . . . . . . 1 . . . 1 . . 1 Parts Built . | . . . . . . . . . . . . . . Authchips . | . . . . . . . . . . . . . . Time . | . . . . . . . . . . . . . . Total Part Build Rating . | . . . . . . . . . . . . . . Part Studies Acquired 5 | . . . . . . 2 . . . 2 . . 1 Parts Repaired 1 | . . . . . . . 1 . . . . . . Time 38 | . . . . . . . 38 . . . . . . Parts Recycled . | . . . . . . . . . . . . . . Recycled Matter . | . . . . . . . . . . . . . . Retrieved Matter . | . . . . . . . . . . . . . . Retrieved Components . | . . . . . . . . . . . . . . Parts Scanalyzed 2 | . . . . . . 1 . . . . . . 1 Part Schematics Acquired 2 | . . . . . . 1 . . . . . . 1 Parts Damaged . | . . . . . . . . . . . . . . Bothacking | -11 -10 -9 -9 -9 -8 -8 -8 -8 -8 -6 -5 -5 -4 ------------ Run | Yrd Mat Mat Min Exi Min Mat Sto Rec Scr Fac Fac DSF Fac Used RIF Installer . | . . . . . . . . . . . . . . Robots Hacked . | . . . . . . . . . . . . . . Non-combat . | . . . . . . . . . . . . . . Combat . | . . . . . . . . . . . . . . Robot Hacks Applied . | . . . . . . . . . . . . . . Relay Couplers Released 1 | . . . . . . 1 . . . . . . . Machine Destruction 1 | . . . . . . 1 . . . . . . . Fabnet Peak Effective % . | . . . . . . . . . . . . . . Robots Rewired . | . . . . . . . . . . . . . . Allies Hacked . | . . . . . . . . . . . . . . Hacks Repelled . | . . . . . . . . . . . . . . Allies | -11 -10 -9 -9 -9 -8 -8 -8 -8 -8 -6 -5 -5 -4 -------- Run | Yrd Mat Mat Min Exi Min Mat Sto Rec Scr Fac Fac DSF Fac Total Allies 14 | . . . 3 . . . 11 . . . . . . Largest Group 9 | . . . 3 3 3 2 9 6 6 6 . . . Highest-Rated Group 157 | . . . 40 40 40 32 157 109 109 109 . . . Highest-Rated Ally 31 | . . . 16 16 16 16 31 29 29 29 . . . Total Orders . | . . . . . . . . . . . . . . Ally Attacks 121 | . . . 5 . 5 37 49 7 . 18 . . . Total Damage 1320 | . . . 39 . 56 431 518 52 . 224 . . . Kills 14 | . . . 1 . 1 3 6 1 . 2 . . . Allies Corrupted . | . . . . . . . . . . . . . . Allies Melted . | . . . . . . . . . . . . . . Turrets Deployed 1 | . . . . 1 . . . . . . . . . Intel | -11 -10 -9 -9 -9 -8 -8 -8 -8 -8 -6 -5 -5 -4 ------- Run | Yrd Mat Mat Min Exi Min Mat Sto Rec Scr Fac Fac DSF Fac Active Infowar (turns) 9380 | . 1451 102 280 1014 990 553 813 296 1095 1455 . 10 1321 Sensors 7279 | . 1000 102 280 1014 990 244 813 296 1095 1445 . . . Terrain 1295 | . . . . . . 309 . . . 986 . . . Seismic 451 | . 451 . . . . . . . . . . . . Machine Analysis 1331 | . . . . . . . . . . . . 10 1321 Jamming 9 | . . . . . . . . . . 9 . . . ECM 5 | . . . . . . . . . . 5 . . . Robot Analysis Total . | . . . . . . . . . . . . . . Derelict Logs Recovered 1 | . . . 1 . . . . . . . . . . Drone Launches . | . . . . . . . . . . . . . . Drone Recoveries . | . . . . . . . . . . . . . . Exploration | -11 -10 -9 -9 -9 -8 -8 -8 -8 -8 -6 -5 -5 -4 ------------- Run | Yrd Mat Mat Min Exi Min Mat Sto Rec Scr Fac Fac DSF Fac Turns Passed 12814 | 88 1453 293 567 1014 1689 2423 905 296 1095 1554 68 48 1321 Spaces Moved 8100 | 46 628 196 349 839 782 995 578 260 990 869 114 86 1368 Core 1682 | 8 . . . . . . . . . 106 114 86 1368 Treads . | . . . . . . . . . . . . . . Legs 6418 | 38 628 196 349 839 782 995 578 260 990 763 . . . Wheels . | . . . . . . . . . . . . . . Hover . | . . . . . . . . . . . . . . Flight . | . . . . . . . . . . . . . . Fastest Speed 50 | 50 120 120 120 120 120 116 108 108 108 50 50 50 50 Average Speed 111 | 111 165 120 120 120 120 160 114 108 108 105 54 50 50 Slowest Speed 455 | 120 190 120 120 120 122 192 190 108 108 455 100 50 50 Overloaded Moves . | . . . . . . . . . . . . . . Propulsion Burnouts . | . . . . . . . . . . . . . . Robots Hopped 2 | . . . . 2 . . . . . . . . . Potential Cave-ins . | . . . . . . . . . . . . . . Cave-ins Triggered . | . . . . . . . . . . . . . . Exploration Rate (%) 53 | 4 76 20 77 93 105 57 70 50 60 25 3 81 22 Regions Visited 13 Branch Regions 6 Pre-discovered Areas . | . . . . . . . . . . . . . . Known Exits Taken 5 | . . . . . . 1 1 1 1 . 1 . . Unknown Exits Taken 7 | 1 1 1 1 1 1 . . . . 1 . . . Scrap Searched 8 | . . . 1 . 1 . . . 6 . . . . Spaces Dug 108 | . 2 1 22 . 27 15 18 . . 23 . . . Terrain Destroyed 502 | . 20 29 29 . 75 242 72 . . 35 . . . Melee 36 | . . 1 . . 1 8 3 . . 23 . . . Projectile 15 | . 5 . . . . 7 . . . 3 . . . AOE 451 | . 15 28 29 . 74 227 69 . . 9 . . . Terrain Rammed . | . . . . . . . . . . . . . . Walls Destroyed . | . . . . . . . . . . . . . . Machines Disabled . | . . . . . . . . . . . . . . Actions | -11 -10 -9 -9 -9 -8 -8 -8 -8 -8 -6 -5 -5 -4 --------- Run | Yrd Mat Mat Min Exi Min Mat Sto Rec Scr Fac Fac DSF Fac Total 11413 | 72 904 229 488 845 1512 1740 766 266 1017 1360 119 90 2005 Wait 2724 | 3 166 5 122 5 712 612 108 . 19 340 . . 632 Move 8083 | 45 627 195 348 834 781 994 577 259 989 868 113 85 1368 Hop 2 | . . . . 2 . . . . . . . . . Pick Up 90 | 13 19 5 3 1 . 21 11 . 1 14 1 1 . Fast Attach 20 | . 2 . . . . 3 4 . . 7 2 2 . Attach 47 | 5 5 2 . . 1 12 2 . 2 18 . . . Detach 8 | . . . . . . 3 1 . 2 2 . . . Swap 58 | . 10 3 3 . 2 8 14 2 . 16 . . . Drop 72 | . 13 3 4 2 2 18 12 . 1 12 3 2 . Fire 205 | 6 61 11 5 . 10 44 27 2 . 39 . . . Melee 94 | . . 5 3 . 4 25 10 3 . 44 . . . Ram 5 | . . . . . . . . . . . . . 5 Kick 1 | . 1 . . . . . . . . . . . . Crush . | . . . . . . . . . . . . . . Escape Stasis . | . . . . . . . . . . . . . . Rewire 4 | . . . . 1 . . . . 3 . . . . Trap . | . . . . . . . . . . . . . . Miscellaneous . | . . . . . . . . . . . . . . Route ------- -11/Scrapyard -10/Materials (discovered 4 exits: *Mat x2 / *Min / [*Sub]) -9/Materials -9/Mines (discovered 3 exits: *Mat / *Exi / [*Zio]) -9/Exiles (discovered 2 exits: [*Min x2]) -8/Mines (discovered 2 exits: *Mat x2) -8/Materials (discovered 3 exits: Fac / *Sto x2) -8/Storage (discovered 2 exits: *Fac / *Rec) -8/Recycling -8/Scraptown -6/Factory (discovered 3 exits: *Fac / Low x2) -5/Factory -5/DSF -4/Factory History --------- Turn | Location | Event 9 | -11/Scrapyard | Discovered new exit (range 15) 89 | -11/Scrapyard | Entered Materials 318 | -10/Materials | Build established: Mutant 531 | -10/Materials | Discovered new exit (range 12) 808 | -10/Materials | Identified exit to Mines 821 | -10/Materials | Discovered new exit (range 5) 873 | -10/Materials | Discovered new exit (range 4) 1095 | -10/Materials | Discovered new exit (range 8) 1542 | -10/Materials | Entered another Materials area 1542 | -9/Materials | Evolved 2 slots: Propulsion x2 1630 | -9/Materials | Discovered new exit (range 15) 1835 | -9/Materials | Entered Mines 1842 | -9/Mines | Build established: Scavenger-Mutant 1842 | -9/Mines | Received a Rocket Launcher from a helpful Derelict 1926 | -9/Mines | A Derelict revealed a hidden shortcut to a safe place 1986 | -9/Mines | Assisted by bots powering up and referring to "LRC-V3" 2159 | -9/Mines | Discovered new exit (range 9) 2380 | -9/Mines | Deemed a non-threat by the Exiles lab entrance 2380 | -9/Mines | Discovered new exit (range 5) 2402 | -9/Mines | Entered Exiles 2402 | -9/Exiles | Accompanied by 3 allies 2430 | -9/Exiles | Met 8R-AWN 2449 | -9/Exiles | Met EX-HEX 2489 | -9/Exiles | Met EX-BIN 2598 | -9/Exiles | Met EX-DEC 2670 | -9/Exiles | Discovered new exit (range 14) 2757 | -9/Exiles | Visited The Gauntlet 3008 | -9/Exiles | Discovered new exit (range 14) 3239 | -9/Exiles | Aligned with FarCom system 3240 | -9/Exiles | Given EX-Vault access code 3267 | -9/Exiles | Opened EX-Vault 3291 | -9/Exiles | DAS Turret deployed 3300 | -9/Exiles | Found Firepult 3321 | -9/Exiles | Exiles lab attacked by MAIN.C 3416 | -9/Exiles | Left Exiles lab with Firepult 3416 | -9/Exiles | Entered Mines 3416 | -8/Mines | Accompanied by 3 allies 3622 | -8/Mines | Discovered new exit (range 9) 3720 | -8/Mines | Build established: Scavenger-Assassin 4541 | -8/Mines | Discovered new exit (range 15) 4779 | -8/Mines | Build established: Mutant 5105 | -8/Mines | Entered Materials 5105 | -8/Materials | Accompanied by 2 allies 5105 | -8/Materials | Evolved 2 slots: Utility x2 5106 | -8/Materials | Identified exit to Factory 5386 | -8/Materials | Identified exit to Storage 7166 | -8/Materials | Lost 3 parts (2n1u) 7352 | -8/Materials | Central database locked down 7505 | -8/Materials | First assault squad dispatched 7528 | -8/Materials | Entered Storage 7805 | -8/Storage | Discovered exit to Factory (range 16) 7983 | -8/Storage | Met a pair of Derelict thieves 8153 | -8/Storage | Repaired Insulated Plating 8207 | -8/Storage | Identified exit to Recycling 8210 | -8/Storage | Assisted by bots powering up and referring to "LRC-V3" 8283 | -8/Storage | Used back door to open Recycling access 8433 | -8/Storage | Entered Recycling 8433 | -8/Recycling | Accompanied by 6 allies 8693 | -8/Recycling | Scanned before Scraplab entrance 8709 | -8/Recycling | Entered Scraplab 8724 | -8/Recycling | Discovered new exit (range 3) 8725 | -8/Recycling | Identified exit to Scraptown 8729 | -8/Recycling | Entered Scraptown 8729 | -8/Scraptown | Accompanied by 6 allies 8733 | -8/Scraptown | System corruption cleaned by C-Scrubber 9037 | -8/Scraptown | Build established: Commander-Mutant 9076 | -8/Scraptown | Discovered new exit (range 13) 9155 | -8/Scraptown | Visited Symbiants 9195 | -8/Scraptown | Visited Spacefarers 9250 | -8/Scraptown | Visited Bundlers 9351 | -8/Scraptown | Visited Awakened 9388 | -8/Scraptown | Visited Shadow of the Wyrm 9609 | -8/Scraptown | Turned away by UFD registrar 9624 | -8/Scraptown | Visited Scrapoid Research Area 9656 | -8/Scraptown | Visited TADAMA 9802 | -8/Scraptown | Identified exit to Factory 9824 | -8/Scraptown | Entered Factory 9824 | -6/Factory | Accompanied by 6 allies 9824 | -6/Factory | Evolved 4 slots: Propulsion x1, Utility x3 10226 | -6/Factory | Identified exit to Lower Caves 10297 | -6/Factory | Lost 6 allies 10549 | -6/Factory | Build established: Assassin 11021 | -6/Factory | Lost 4 parts (2n1u1w) 11296 | -6/Factory | Core integrity fell below 50% 11331 | -6/Factory | Lost 17 parts (2p7n7u1w) 11339 | -6/Factory | Discovered new exit (range 13) 11378 | -6/Factory | Entered another Factory area 11378 | -5/Factory | Evolved 2 slots: Power x1, Weapon x1 11446 | -5/Factory | Identified exit to DSF 11446 | -5/Factory | Entered DSF 11470 | -5/DSF | Additional patrols routed to DSF 11489 | -5/DSF | Discovered new exit (range 11) 11494 | -5/DSF | Entered Factory 11494 | -4/Factory | Evolved 2 slots: Utility x1, Weapon x1 11543 | -4/Factory | Build established: Mutant 11981 | -4/Factory | Central database locked down 12739 | -4/Factory | Core integrity fell below 50% 12795 | -4/Factory | Core integrity fell below 20% 12815 | -4/Factory | Destroyed by G-67 Veteran with Field Laser Last Messages --------------- Unit F008. Dispatching Investigation squad. 12686_ W-44 Eye sends out distress signal. 12718_ Slammed into G-73 Enforcer. 12725_ Slammed into G-67 Veteran. 12731_ ALERT: Cargo convoy en route, clear transfer corridor. 12733_ ALERT: Potential suspicious activity detected, Programmers report to Factory Zone 1V. 12739_ Slammed into P-70 Sage. 12741_ K-01 Serf cleans the Pressure Siphon. 12794_ Critical hit (Burn: +50). 12800_ Terminal disabled. 12803_ K-01 Serf destroyed. 12808_ P-70 Sage resets G-67 Veteran, system corruption cleaned. 12814_ >> Machine Analyzer network decryption results: 12814_ Terminal x2 [Achievement: This Is Interesting...] Map ----- +----------------------------------------------------+ | ###???# ########?????????????????????????????????? | | #???# ??????????????????????????? | | #???# ########?????????????????????????????????? | | #???# #????????????????????????????????????????? | | #???# #????????????????????????????????????????? | | #???# #????????????????????????????????????????? | | ###???# #????????????????????????????????????????? | | #?????# #????????????????????????????????????????? | | #?????# #????????????????????????????????????????? | | #?????# ########?????????????????????????????????? | | #?????# # #?? ??"""????????????????????????? | | ####### # """ #?? """""????"Y"?????????????????? | | # """ #??? """"" ???"""?????????????????? | | + """ #??? ???????????????????????? | | !!! ""# #???? """????????????????????????? | | !! T"# #????"""""??????pp????????????????? | | !! "########????"""""????????????????????????? | | #???????????? ?????????????????????????? | | = ##############+####??????????????????????? | | """*% g p #??????????????????????? | | """ = p ############## #??????????????????????? | | """ #######??????# #??????????????????????? | | / ! # #??????????????????????? | | #### # #??????????????????????? | | #??? # #####??????????????????? | | #????!! "" #@ #??????????????????? | | #### #?????! ""???# #??????????????????? | | ???# #?????? """??; #??????????????????? | | ???# #?????? """??# #??????????????????? | | ???# #??????? """??# g #??????????????????? | | ???# #???????? ???# #??????????????????? | | ???# #????????? ???# A#??????????????????? | | ???# #????????? ??# ??????????????????? | | ???# #?????????? ????# ?????????????????? | | ??? #???????????????? ????????????????? | | ??? #???????????????? ????????????????? | | ??! #???????????????? ???????????????? | | ??! #????????????????# T#######??????????????? | | ?! #?????????????????###????????????????????? | | ? #????????????????????????????????????????? | | #?????????????????"""?"""?"""????????????? | | #######+#?????????????????"""?"""?"""????????????? | | ??????????????????????????"""?"""?"""??????????""" | | ???????????????????????????????????????????????""" | | ???????????????????????????????????????????????""" | | ?????????????????????????????????????????????????? | | ???????????????????????????????????????????????""" | | ???????????????????????????????????????????????""" | | ???????????????????????????????????????????????""" | | ?????????????????????????????????????????????????? | +----------------------------------------------------+ Best States ------------- Heat Dissipation 73 Energy Generation 15 Energy Capacity 275 Matter Stores 300 Matter Capacity 300 Sight Range 16 Robot Scan Range 15 Terrain Scan Range 20 Terrain Scan Density 210 ECM Strength 2 Jamming Range 12 Additional Mass Support 9 Armor Coverage 375 Resistance: EM 15 Melee Speed Boost 20 Evasion (%) 65 Item Schematics ----------------- Aluminum Leg | -8/Materials | Scanalyzed Med. Armor Plating | -6/Factory | Hacked Hcp. Storage Unit | -4/Factory | Scanalyzed Robot Schematics ------------------ None Fabricated ------------ Nothing Repaired ---------- Insulated Plating | 9% | -8/Storage Studied --------- Carbon-fiber Leg | -8/Materials | Hacked Lgt. Deuterium Engine | -8/Materials | Hacked Imp. Carbon-fiber Leg | -6/Factory | Hacked Aluminum Leg | -6/Factory | Hacked Great Axe | -4/Factory | Hacked Alien Tech Used ----------------- None Achievements -------------- Civilization 2243 Omniscient Cartographer This Is Interesting... You May Approach The Wall \\IAMDERELICT Challenges ------------ None Game ------ Seed MasterAntimatterDerivative Manual? 0 Play Time 02:09:47 Cumulative 39.9 hours Start 2025.11.03 @ 14:36:12 End 2025.11.03 @ 19:25:14 Sessions 3 Manual Loads 0 Difficulty Rogue Special Mode None Game No. 22 Rogue 22 Adventurer 0 Explorer 0 Win Type - Total 0 Types 0/0/0/0/0/0/0/0/0/0 Lore% 25 Gallery% 31 Achievement% 30 Wizard Run 0 Options --------- Layout 1 ASCII 0 Keyboard 0 Movement Numpad Keybinds 0 Fullscreen 1 Font 24/Smallcaps Map View 50x35 Zoom Use 0% Tactical HUD 1 Map Filters NONE Filters NONE Steam 1 RUN: 3d014133-aa8b-41a1-aab8-11d89cf35859